bitfinex/quotes_BTCUSD_20210101
["timestamp","ask_amount","ask_price","bid_price","bid_amount"]
[1609490636196,10.0,28996.0,28995.0,0.0008]
[1609490638217,11.0,28996.0,28995.0,0.0008]
[1609490639789,11.53846812,28996.0,28995.0,0.0008]
[1609490639987,11.64237591,28996.0,28995.0,0.0008]
[1609490640183,11.53846812,28996.0,28995.0,0.0008]
[1609490640389,11.02846812,28996.0,28995.0,0.0008]
[1609490640632,11.0,28996.0,28995.0,0.0008]
[1609490640836,11.0669341,28996.0,28995.0,0.0008]
[1609490642371,11.39393712,28996.0,28995.0,0.0008]
[1609490642735,11.90393712,28996.0,28995.0,0.0006]
[1609490643536,11.90393712,28996.0,28995.0,2.2006]
[1609490643738,11.0669341,28996.0,28995.0,2.2006]
[1609490644047,0.00204608,29001.0,28996.0,0.96]
[1609490644048,1.018e-05,29001.0,28996.0,0.96]
[1609490644270,1.018e-05,29001.0,29000.0,0.96]
[1609490644470,2.04e-06,29007.0,29002.0,0.96]
[1609490644669,0.12292812,29016.0,29006.0,1.37167]
[1609490644871,0.12292812,29016.0,29011.0,0.96]
[1609490645067,0.12292812,29016.0,29012.0,1.530353]
[1609490645269,0.00365614,29026.0,29013.0,0.965]
[1609490645270,0.2581,29017.0,29013.0,0.965]
[1609490645464,0.2581,29017.0,29014.0,1.554613]
[1609490645665,0.2581,29017.0,29015.0,0.96]
[1609490645870,0.2581,29017.0,29016.0,0.364613]
[1609490646079,0.2581,29017.0,29015.0,0.005]
[1609490646080,0.2581,29017.0,29012.0,0.005]
[1609490646276,5.0,29015.0,29010.0,1.1898]
[1609490646572,1.18495512,29014.0,29011.0,0.96]
[1609490646767,5.0,29014.0,29011.0,0.96]
[1609490646968,5.0,29013.0,29011.0,0.96]
[1609490647167,10.0,29013.0,29011.0,0.96]
[1609490647369,10.0,29013.0,29012.0,5.664613]
[1609490647574,5.0,29014.0,29012.0,6.624613]
[1609490647774,0.2581,29017.0,29013.0,1.67]
[1609490648006,0.3442,29022.0,29010.0,1.1898]
[1609490648007,10.0,29013.0,29010.0,1.1898]
[1609490648207,5.0,29013.0,29010.0,1.1898]
[1609490648504,10.0,29012.0,29011.0,3.324613]
[1609490648904,10.0,29014.0,29011.0,0.96]
[1609490649206,10.0,29012.0,29011.0,0.9602]
[1609490649404,10.2582,29013.0,29011.0,0.9602]
[1609490649703,0.3442,29022.0,29013.0,0.0002]
[1609490649905,0.3442,29022.0,29015.0,0.364613]
[1609490650205,10.0,29021.0,29016.0,0.9602]
[1609490650608,10.51,29020.0,29016.0,0.9602]
[1609490650803,0.2581,29018.0,29017.0,0.5162]
[1609490651006,10.35799199,29021.0,29011.0,0.0002]
[1609490651204,10.35799199,29021.0,29010.0,0.6737]
[1609490651205,0.03913109,29017.0,29010.0,0.6737]
[1609490651707,10.11253409,29016.0,29010.0,0.6737]
[1609490651905,10.11253409,29016.0,29010.0,1.6337]
[1609490652102,10.0,29015.0,29010.0,1.6337]
[1609490652302,0.2582,29013.0,29011.0,0.0002]
[1609490652706,10.0,29012.0,29011.0,0.0002]
[1609490652907,10.0,29012.0,29011.0,0.96]
[1609490653114,10.0,29012.0,29010.0,1.6337]
[1609490653508,0.2582,29013.0,29011.0,2.4]
[1609490653760,0.2582,29013.0,29012.0,0.364813]
[1609490653960,0.2582,29013.0,29012.0,0.744613]
[1609490654160,10.2582,29013.0,29012.0,1.704613]
[1609490654366,0.2582,29013.0,29012.0,0.96]
[1609490654659,5.2582,29013.0,29012.0,0.96]
[1609490654860,0.2582,29013.0,29012.0,0.96]
[1609490655059,10.2582,29013.0,29012.0,0.96]
[1609490655362,0.2582,29013.0,29012.0,0.96]
[1609490655558,5.2582,29013.0,29012.0,0.96]
[1609490655761,10.2582,29013.0,29012.0,0.9602]
[1609490656362,10.34132,29013.0,29011.0,0.0002]
[1609490656666,10.51,29012.0,29011.0,0.0002]
[1609490656860,10.51,29012.0,29010.0,0.6737]
[1609490657162,10.0,29011.0,29010.0,0.6737]
[1609490657393,10.11390199,29011.0,29010.0,0.6737]
[1609490657593,10.0,29011.0,29010.0,0.6737]
[1609490657795,10.62390199,29011.0,29010.0,0.6737]
[1609490658195,10.62390199,29011.0,29010.0,0.6735]
[1609490659198,10.8543,29011.0,29010.0,0.6735]
[1609490659398,10.3443,29011.0,29010.0,0.6735]
[1609490660703,10.45820199,29011.0,29009.0,0.0002]
[1609490660912,10.45820199,29011.0,29007.0,0.0002]
[1609490660913,6.39131774,29010.0,29007.0,0.0002]
[1609490661211,5.62700302,29008.0,29007.0,0.0002]
[1609490661406,5.62700302,29008.0,28999.0,0.0002]
[1609490661407,6.00342324,29008.0,28999.0,0.0002]
[1609490661601,0.50136302,29006.0,28999.0,0.0002]
[1609490661807,0.50136302,29006.0,28998.0,0.6494]
[1609490661808,5.3,29004.0,28998.0,0.6494]
[1609490662004,0.32700302,29003.0,28998.0,0.6494]
[1609490662205,0.34440001,29001.0,28998.0,0.6494]
[1609490662505,5.36955199,29000.0,28998.0,0.6494]
[1609490662707,0.32700302,28999.0,28998.0,1.6094]
[1609490662905,10.0,28999.0,28998.0,0.6494]
[1609490663126,10.24498199,28999.0,28998.0,0.6494]
[1609490663423,10.13108,28999.0,28998.0,0.6494]
[1609490664626,10.24498199,28999.0,28994.0,0.6896]
[1609490664825,0.83700302,28998.0,28994.0,0.6896]
[1609490665026,0.32700302,28997.0,28994.0,0.6896]
[1609490665230,10.32700302,28997.0,28995.0,0.0008]
[1609490665429,5.83700302,28996.0,28995.0,0.0008]
[1609490665829,10.51,28996.0,28995.0,0.0008]
[1609490667332,10.54891822,28996.0,28995.0,0.0008]
[1609490667533,0.32700302,28995.0,28990.0,0.0194]
[1609490667731,0.32700302,28994.0,28990.0,0.0194]
[1609490667930,5.84577512,28994.0,28990.0,0.0194]
[1609490668133,10.32700302,28993.0,28990.0,0.0194]
[1609490668431,10.32700302,28992.0,28990.0,0.0194]
[1609490668680,0.69700302,28991.0,28990.0,0.0194]
[1609490668881,11.09700302,28991.0,28988.0,0.0008]
[1609490669085,0.32700302,28990.0,28988.0,0.0008]
[1609490669286,0.32700302,28989.0,28988.0,0.0008]
[1609490669583,10.32700302,28989.0,28988.0,0.0008]
[1609490669882,10.475,28989.0,28988.0,0.0008]
[1609490670786,10.83047114,28989.0,28988.0,0.0008]
[1609490670984,10.80200302,28989.0,28988.0,0.0008]
[1609490671383,10.80200302,28989.0,28988.0,0.001]
[1609490671584,10.475,28989.0,28988.0,0.001]
[1609490672187,10.0,28989.0,28988.0,0.001]
[1609490672783,10.03883763,28989.0,28988.0,0.001]
[1609490674197,10.18008953,28989.0,28988.0,0.001]
[1609490674435,10.66508953,28989.0,28988.0,0.001]
[1609490675721,10.18008953,28989.0,28988.0,0.001]
[1609490678457,10.68209255,28989.0,28988.0,0.001]
[1609490679453,10.69379255,28989.0,28988.0,0.001]
[1609490680063,10.36678953,28989.0,28988.0,0.001]
[1609490680358,10.52678953,28989.0,28988.0,0.001]
[1609490681458,10.38553763,28989.0,28988.0,0.001]
[1609490682060,10.71254065,28989.0,28988.0,0.001]
[1609490682261,10.55254065,28989.0,28988.0,0.001]
[1609490682465,10.69379255,28989.0,28988.0,1.161]
[1609490682764,10.51879255,28989.0,28988.0,1.525413]
[1609490682963,10.51879255,28989.0,28988.0,1.1608]
[1609490683463,10.19178953,28989.0,28988.0,1.1608]
[1609490683788,10.19178953,28989.0,28988.0,1.525413]
[1609490684286,10.19178953,28989.0,28988.0,1.325413]
[1609490684787,10.19178953,28989.0,28988.0,1.525413]
[1609490685991,10.19178953,28989.0,28988.0,0.565413]
[1609490686190,10.19178953,28989.0,28988.0,1.325413]
[1609490686387,10.19178953,28989.0,28988.0,0.565613]
[1609490686590,10.19178953,28989.0,28988.0,0.365613]
[1609490687292,10.19178953,28989.0,28988.0,3.065413]
[1609490688019,10.19178953,28989.0,28988.0,1.525413]
[1609490688620,10.19178953,28989.0,28988.0,0.565413]
[1609490688923,10.19178953,28989.0,28988.0,1.325413]
[1609490689621,10.19178953,28989.0,28988.0,1.525413]
[1609490691221,10.05053763,28989.0,28988.0,1.325413]
[1609490691419,10.05053763,28989.0,28988.0,1.313213]
[1609490692220,10.19178953,28989.0,28988.0,1.313213]
[1609490693021,10.53178953,28989.0,28988.0,1.313213]
[1609490693267,10.19178953,28989.0,28988.0,1.313213]
[1609490693966,10.19178953,28989.0,28988.0,0.353213]
[1609490694267,10.19178953,28989.0,28988.0,1.313413]
[1609490694768,10.19178953,28989.0,28988.0,1.313213]
[1609490694969,10.05053763,28989.0,28988.0,0.353213]
[1609490695372,10.05053763,28989.0,28988.0,0.553413]
[1609490695573,10.05053763,28989.0,28988.0,0.353413]
[1609490698498,0.32700302,28988.0,28987.0,0.5175]
[1609490698823,10.32700302,28988.0,28987.0,0.883411]
[1609490698968,10.0,28988.0,28987.0,1.843211]
[1609490699168,10.0,28988.0,28987.0,0.883211]
[1609490699366,10.0,28988.0,28987.0,0.5175]
[1609490699766,10.0,28988.0,28987.0,0.5075]
[1609490699966,10.0,28988.0,28987.0,0.873411]
[1609490700372,10.96651999,28988.0,28987.0,0.0002]
[1609490700686,0.32700302,28987.0,28986.0,0.0008]
[1609490700886,0.33869102,28987.0,28986.0,0.0008]
[1609490701084,10.011688,28987.0,28986.0,0.0008]
[1609490701385,10.33869102,28987.0,28986.0,0.0008]
[1609490701585,10.84869102,28987.0,28986.0,0.0008]
[1609490704588,10.9899413,28987.0,28986.0,0.0008]
[1609490706709,10.9899413,28987.0,28986.0,0.0018]
[1609490707613,10.4799413,28987.0,28986.0,0.0018]
[1609490709915,10.4799413,28987.0,28986.0,0.0008]
[1609490709916,10.6708013,28987.0,28986.0,0.0008]
[1609490710117,11.1808013,28987.0,28986.0,0.0008]
[1609490710313,11.1808013,28987.0,28986.0,0.0018]
[1609490712334,11.1808013,28987.0,28985.0,4.4465]
[1609490712335,4.47700302,28986.0,28985.0,4.4465]
[1609490712632,16.1378934,28986.0,28985.0,4.4465]
[1609490713033,12.3899413,28986.0,28985.0,4.4465]
[1609490713235,11.9845413,28986.0,28985.0,4.4465]
[1609490713912,12.09844329,28986.0,28985.0,4.4465]
[1609490714317,11.75384329,28986.0,28985.0,4.4465]
[1609490714512,11.78231141,28986.0,28985.0,4.4465]
[1609490714711,12.81441141,28986.0,28985.0,4.4465]
[1609490715215,12.6720413,28986.0,28985.0,4.4465]
[1609490715615,13.0361306,28986.0,28985.0,4.4465]
[1609490715848,12.71629116,28986.0,28985.0,4.4465]
[1609490716348,12.71629116,28986.0,28985.0,4.4467]
[1609490716944,13.19428245,28986.0,28985.0,4.4467]
[1609490717343,13.54223455,28986.0,28985.0,4.4467]
[1609490717744,13.42833256,28986.0,28985.0,4.4467]
[1609490718143,13.54223455,28986.0,28985.0,4.4467]
[1609490718545,13.17814525,28986.0,28985.0,4.4467]
[1609490718945,13.26533525,28986.0,28985.0,4.4467]
[1609490719245,12.91738315,28986.0,28985.0,4.4467]
[1609490719673,12.80348116,28986.0,28985.0,4.4467]
[1609490720178,12.71629116,28986.0,28985.0,4.4467]
[1609490720376,12.83019315,28986.0,28985.0,4.4417]
[1609490721381,12.95587315,28986.0,28985.0,4.4417]
[1609490721682,13.30382525,28986.0,28985.0,4.4417]
[1609490721882,12.95587315,28986.0,28985.0,4.4417]
[1609490722579,13.30382525,28986.0,28985.0,4.4417]
[1609490723486,13.30382525,28986.0,28985.0,4.4367]
[1609490723786,12.95587315,28986.0,28985.0,4.4367]
[1609490723982,12.95587315,28986.0,28985.0,4.4376691]
[1609490724886,12.84197116,28986.0,28985.0,4.4376691]
[1609490725310,12.83954086,28986.0,28985.0,4.4376691]
[1609490725509,12.95344285,28986.0,28985.0,4.4376691]
[1609490725911,14.54093485,28986.0,28985.0,4.4376691]
[1609490726118,1.05,28984.0,28983.0,0.0004]
[1609490726312,8.69997697,28984.0,28983.0,0.0004]
[1609490726510,13.74253439,28984.0,28983.0,0.0004]
[1609490726714,18.74253439,28984.0,28983.0,0.0004]
[1609490727011,20.28463439,28984.0,28983.0,0.0004]
[1609490727210,21.42088467,28984.0,28983.0,0.0004]
[1609490728886,0.7,28982.0,28977.0,0.0008]
[1609490729049,0.7,28982.0,28966.0,0.01168623]
[1609490729050,1.05,28978.0,28966.0,0.01168623]
[1609490729256,1.05,28978.0,28970.0,0.0006]
[1609490729257,0.011688,28973.0,28970.0,0.0006]
[1609490729454,0.011688,28973.0,28964.0,0.0004]
[1609490729455,0.3479521,28968.0,28964.0,0.0004]
[1609490729653,1.3979521,28965.0,28959.0,0.0018]
[1609490729853,1.6124793,28963.0,28959.0,0.0018]
[1609490730044,7.8997628,28962.0,28961.0,0.0006]
[1609490730251,7.12495512,28961.0,28960.0,0.01267367]
[1609490730548,5.66715914,28960.0,28959.0,0.0018]
[1609490730802,5.66715914,28960.0,28953.0,0.10216521]
[1609490730803,0.44436115,28958.0,28953.0,0.10216521]
[1609490730996,4.411688,28954.0,28953.0,0.07816521]
[1609490731299,5.311688,28953.0,28948.0,0.0018]
[1609490731496,5.63869102,28953.0,28948.0,0.0018]
[1609490731796,10.33869102,28953.0,28948.0,0.0018]
[1609490731997,10.33869102,28953.0,28952.0,0.9614]
[1609490732202,10.47995992,28953.0,28952.0,1.1014]
[1609490732397,10.47995992,28953.0,28952.0,0.9614]
[1609490732698,10.1529569,28953.0,28952.0,1.9614]
[1609490732894,10.1529569,28953.0,28952.0,1.1614]
[1609490733097,10.1525569,28953.0,28952.0,4.9614]
[1609490733300,10.1525569,28953.0,28952.0,1.1316]
[1609490733301,10.1412689,28953.0,28952.0,1.1316]
[1609490733697,10.1524899,28953.0,28952.0,0.9616]
[1609490733996,10.1412689,28953.0,28952.0,1.327947]
[1609490734400,10.1524899,28953.0,28952.0,0.0016]
[1609490734616,10.3219599,28953.0,28952.0,0.0016]
[1609490736933,11.3540599,28953.0,28952.0,0.0016]
[1609490737133,11.3540599,28953.0,28950.0,0.96]
[1609490737336,0.33822402,28952.0,28949.0,0.0018]
[1609490737535,0.32700302,28951.0,28949.0,0.0018]
[1609490737734,0.011221,28950.0,28949.0,0.0018]
[1609490737934,10.011221,28950.0,28949.0,0.0018]
[1609490738667,10.98949292,28950.0,28949.0,0.0018]
[1609490738864,11.01796104,28950.0,28949.0,0.0018]
[1609490739969,10.98949292,28950.0,28949.0,0.0018]
[1609490740370,10.47949292,28950.0,28949.0,0.002]
[1609490741369,10.52334019,28950.0,28949.0,0.002]
[1609490742470,10.68334019,28950.0,28949.0,0.002]
[1609490743270,10.69484019,28950.0,28949.0,0.002]
[1609490744732,10.69463119,28950.0,28949.0,0.002]
[1609490744928,10.88463119,28950.0,28949.0,0.002]
[1609490745331,11.88463119,28950.0,28949.0,0.002]
[1609490746436,11.53463119,28950.0,28949.0,0.002]
[1609490747032,11.53983119,28950.0,28949.0,0.002]
[1609490747737,11.53983119,28950.0,28949.0,0.962]
[1609490747938,11.53463119,28950.0,28949.0,0.962]
[1609490748740,11.53463119,28950.0,28949.0,0.9622008]
[1609490749137,11.38836229,28950.0,28949.0,3.8122008]
[1609490749339,11.38836229,28950.0,28949.0,1.7122008]
[1609490749848,11.38235029,28950.0,28949.0,1.7122008]
[1609490750048,11.38235029,28950.0,28949.0,0.9622008]
[1609490750449,10.38235029,28950.0,28949.0,0.9622008]
[1609490750949,10.37735029,28950.0,28949.0,6.6285838]
[1609490751153,10.05034727,28950.0,28949.0,6.8233838]
[1609490751353,10.05034727,28950.0,28949.0,7.8985838]
[1609490751560,0.4312,28958.0,28950.0,1.1548]
[1609490751754,0.8624,28971.0,28953.0,0.96]
[1609490752057,0.8624,28971.0,28955.0,1.521183]
[1609490752250,0.26927702,28980.0,28957.0,0.366383]
[1609490752455,0.31261831,28983.0,28959.0,1.078383]
[1609490752456,0.5172,28972.0,28959.0,1.078383]
[1609490752752,0.5172,28972.0,28960.0,2.156383]
[1609490752753,0.2586,28961.0,28960.0,2.156383]
[1609490752952,0.2586,28961.0,28960.0,2.156583]
[1609490753351,0.2586,28961.0,28960.0,1.961783]
[1609490753352,0.58560302,28961.0,28960.0,1.961783]
[1609490753551,0.2586,28961.0,28960.0,2.706583]
[1609490753753,10.2586,28961.0,28960.0,2.706583]
[1609490753955,0.2586,28961.0,28960.0,2.511783]
[1609490754155,10.2586,28961.0,28960.0,2.511783]
[1609490754348,10.2586,28961.0,28960.0,2.706583]
[1609490754553,0.56060302,28961.0,28960.0,2.511783]
[1609490754754,5.56060302,28961.0,28960.0,2.511783]
[1609490754956,10.2336,28961.0,28960.0,2.511783]
[1609490755381,10.2336,28961.0,28960.0,3.511783]
[1609490755582,10.2336,28961.0,28960.0,2.961783]
[1609490757387,10.2336,28961.0,28960.0,4.861783]
[1609490757688,10.2336,28961.0,28960.0,2.261783]
[1609490758090,10.2336,28961.0,28960.0,1.95089704]
[1609490758956,10.3748689,28961.0,28960.0,1.006283]
[1609490759124,10.52038089,28961.0,28960.0,0.6397]
[1609490759325,10.97941089,28961.0,28960.0,0.6397]
[1609490759523,11.19331089,28961.0,28960.0,0.6397]
[1609490760122,10.7043689,28961.0,28960.0,0.6397]
[1609490760325,10.2554989,28961.0,28960.0,1.58451404]
[1609490760521,10.1412689,28961.0,28960.0,1.58451404]
[1609490760964,10.1412689,28961.0,28960.0,0.6399]
[1609490761166,10.1412689,28961.0,28960.0,0.6397]
[1609490761358,10.1412689,28961.0,28960.0,0.6143207]
[1609490762362,10.0,28961.0,28960.0,0.6143207]
[1609490762564,10.13714639,28961.0,28960.0,2.1143207]
[1609490762863,9.8501847,28961.0,28960.0,0.6143207]
[1609490763061,9.8501847,28961.0,28960.0,0.6145207]
[1609490763665,9.96408669,28961.0,28960.0,0.6143207]
[1609490764263,9.8501847,28961.0,28960.0,0.6143207]
[1609490764883,10.32139503,28961.0,28960.0,0.6143207]
[1609490766785,10.34890105,28961.0,28960.0,0.6143207]
[1609490766987,10.34890105,28961.0,28960.0,1.55913474]
[1609490767187,10.34890105,28961.0,28960.0,1.81913474]
[1609490767691,10.20763359,28961.0,28960.0,2.26551774]
[1609490767891,10.20763359,28961.0,28960.0,2.46031774]
[1609490768787,10.20763359,28961.0,28960.0,2.20031774]
[1609490769189,10.20763359,28961.0,28960.0,5.00551774]
[1609490769492,10.20763359,28961.0,28960.0,5.20031774]
[1609490770213,10.20763359,28961.0,28960.0,6.70031774]
[1609490770508,10.20763359,28961.0,28960.0,5.20031774]
[1609490770708,10.20763359,28961.0,28960.0,5.75531774]
[1609490771414,10.20763359,28961.0,28960.0,5.56051774]
[1609490771609,10.20763359,28961.0,28960.0,5.75531774]
[1609490771810,10.20763359,28961.0,28960.0,5.94437774]
[1609490772209,10.20763359,28961.0,28960.0,7.59437774]
[1609490772610,10.20763359,28961.0,28960.0,5.94437774]
[1609490773711,4.08766359,28961.0,28960.0,5.86437774]
[1609490774013,0.0060838,28981.0,28960.0,2.94437774]
[1609490774182,0.0060838,28981.0,28969.0,0.94461404]
[1609490774183,0.2585,28977.0,28969.0,0.94461404]
[1609490774375,0.3448,28983.0,28970.0,0.005]
[1609490774376,0.00608259,28980.0,28970.0,0.005]
[1609490774571,0.00608259,28980.0,28972.0,0.366383]
[1609490774775,0.3448,28983.0,28977.0,0.366383]
[1609490774973,0.3448,28983.0,28977.0,1.82789704]
[1609490775172,0.3448,28983.0,28977.0,2.01864704]
[1609490775478,0.0002,28983.0,28979.0,0.366383]
[1609490775677,0.0002,28983.0,28980.0,1.31099704]
[1609490775909,0.0002,28983.0,28981.0,0.366]
[1609490776219,0.0002,28983.0,28982.0,0.5612]
[1609490776409,0.0002,28983.0,28982.0,0.3662]
[1609490776613,10.0002,28983.0,28982.0,0.0002]
[1609490776813,10.0002,28983.0,28979.0,0.0002]
[1609490777114,10.15,28982.0,28980.0,0.366]
[1609490777311,10.0,28982.0,28980.0,0.55846]
[1609490777512,10.0,28981.0,28980.0,0.55846]
[1609490777710,10.0,28981.0,28980.0,0.74346]
[1609490778014,5.0,28981.0,28980.0,1.50307404]
[1609490778213,10.0,28981.0,28980.0,1.50327404]
[1609490778413,5.0,28981.0,28980.0,1.82827404]
[1609490778813,5.0,28981.0,28980.0,1.31081404]
[1609490779115,10.0,28981.0,28980.0,1.31081404]
[1609490779312,10.0,28982.0,28980.0,1.30961404]
[1609490779516,0.0002,28983.0,28981.0,1.45961404]
[1609490779741,0.0002,28983.0,28982.0,1.30941404]
[1609490779940,0.0002,28983.0,28982.0,1.48010404]
[1609490780145,10.0002,28983.0,28982.0,1.73030404]
[1609490780341,10.0002,28983.0,28982.0,1.72530404]
[1609490780541,10.30358623,28983.0,28982.0,1.72530404]
[1609490781345,10.30358623,28983.0,28982.0,0.6162]
[1609490781645,10.30358623,28983.0,28982.0,0.3662]
[1609490781842,10.30358623,28983.0,28982.0,1.30941404]
[1609490782344,10.30358623,28983.0,28982.0,1.50461404]
[1609490782542,10.30358623,28983.0,28982.0,1.50440545]
[1609490783042,10.30358623,28983.0,28982.0,2.69546545]
[1609490783245,10.30358623,28983.0,28982.0,1.69546545]
[1609490783646,10.30358623,28983.0,28982.0,1.62546545]
[1609490785047,10.30358623,28983.0,28982.0,2.67546545]
[1609490785473,10.30358623,28983.0,28982.0,0.68205141]
[1609490785671,10.30358623,28983.0,28982.0,1.23920545]
[1609490785871,10.30358623,28983.0,28982.0,0.29579141]
[1609490786171,10.30358623,28983.0,28982.0,0.29599141]
[1609490786374,10.30358623,28983.0,28982.0,1.23940545]
[1609490786776,10.30358623,28983.0,28982.0,1.42440545]
[1609490786979,10.30358623,28983.0,28982.0,0.48079141]
[1609490787275,10.30358623,28983.0,28982.0,0.29579141]
[1609490787979,10.72564022,28983.0,28980.0,0.0002]
[1609490788174,0.088952,28982.0,28980.0,0.0002]
[1609490788377,10.0,28982.0,28981.0,0.365982]
[1609490788574,10.0,28982.0,28980.0,0.0002]
[1609490788777,10.0,28982.0,28981.0,0.365982]
[1609490789050,10.0,28981.0,28980.0,0.0002]
[1609490789249,10.0,28982.0,28980.0,0.705982]
[1609490789446,5.0,28981.0,28980.0,0.34]
[1609490789747,5.0,28981.0,28980.0,0.706182]
[1609490790345,5.0,28981.0,28980.0,0.3402]
[1609490790545,10.0,28981.0,28980.0,0.366182]
[1609490792445,10.01397406,28981.0,28980.0,0.366182]
[1609490795170,10.01397406,28981.0,28980.0,1.30959604]
[1609490795676,10.01397406,28981.0,28980.0,1.91459604]
[1609490795878,10.01397406,28981.0,28980.0,0.971182]
[1609490796273,10.01397406,28981.0,28980.0,1.91459604]
[1609490796472,10.01397406,28981.0,28980.0,0.971182]
[1609490796678,10.01397406,28981.0,28980.0,1.91459604]
[1609490797073,10.01397406,28981.0,28980.0,1.38959604]
[1609490797273,10.01397406,28981.0,28980.0,0.446182]
[1609490797474,10.01397406,28981.0,28980.0,1.38959604]
[1609490798274,10.01397406,28981.0,28980.0,0.446182]
[1609490799775,10.01397406,28981.0,28980.0,1.446182]
[1609490799974,10.01397406,28981.0,28980.0,0.446182]
[1609490801411,10.01397406,28981.0,28980.0,1.38959604]
[1609490801612,10.01397406,28981.0,28980.0,2.78959604]
[1609490801613,9.40077406,28981.0,28980.0,2.78959604]
[1609490801813,9.40077406,28981.0,28980.0,3.37959604]
[1609490802017,7.98344407,28981.0,28980.0,2.47959604]
[1609490802212,7.60714407,28981.0,28980.0,2.47959604]
[1609490802610,6.58594407,28981.0,28980.0,2.47959604]
[1609490802811,6.58594407,28981.0,28980.0,2.99619604]
[1609490803311,6.33921491,28981.0,28980.0,2.99619604]
[1609490803610,6.33921491,28981.0,28980.0,1.97959604]
[1609490803611,5.88921491,28981.0,28980.0,1.97959604]
[1609490804101,5.20071491,28981.0,28980.0,1.97959604]
[1609490804346,5.20071491,28981.0,28980.0,3.70109604]
[1609490804347,4.06822853,28981.0,28980.0,3.70109604]
[1609490804541,8.37952853,28981.0,28980.0,1.97959604]
[1609490804741,2.69102853,28981.0,28980.0,1.97959604]
[1609490804940,0.59592078,28981.0,28980.0,1.97959604]
[1609490805142,0.50192078,28981.0,28980.0,1.97959604]
[1609490805342,5.42242078,28981.0,28980.0,1.97959604]
[1609490805542,0.42002078,28981.0,28980.0,1.97959604]
[1609490805747,0.30018623,28983.0,28982.0,1.13821404]
[1609490805987,0.0006,28998.0,28982.0,3.21330934]
[1609490806195,0.0006,28998.0,28987.0,2.23020404]
[1609490806386,0.0006,28998.0,28991.0,0.365982]
[1609490806387,0.0002,28994.0,28991.0,0.365982]
[1609490806584,0.0002,28994.0,28993.0,0.365982]
[1609490806783,0.0002,28994.0,28993.0,0.570982]
[1609490806985,0.0002,28994.0,28993.0,1.31439604]
[1609490807186,10.0002,28994.0,28993.0,1.31439604]
[1609490807383,10.0002,28994.0,28993.0,1.30939604]
[1609490807583,10.0002,28994.0,28993.0,1.59439604]
[1609490807989,10.0002,28994.0,28993.0,2.11079604]
[1609490813105,10.14146746,28994.0,28993.0,2.03079604]
[1609490813303,10.14146746,28994.0,28993.0,1.51439604]
[1609490814103,10.0002,28994.0,28993.0,1.51439604]
[1609490815204,10.14146746,28994.0,28993.0,1.51439604]
[1609490818059,10.15237367,28994.0,28993.0,1.51439604]
[1609490818856,10.09617367,28994.0,28993.0,1.51439604]
[1609490819831,10.09617367,28994.0,28993.0,1.59439604]
[1609490821431,9.95490621,28994.0,28993.0,0.650982]
[1609490821635,10.12491621,28994.0,28993.0,0.365982]
[1609490821834,10.2388182,28994.0,28993.0,0.365982]
[1609490822731,10.58530821,28994.0,28993.0,0.365982]
[1609490823734,10.47140622,28994.0,28993.0,0.365982]
[1609490825061,10.58530821,28994.0,28993.0,0.365982]
[1609490826260,10.52799218,28994.0,28993.0,0.365982]
[1609490826563,10.73901417,28994.0,28993.0,0.365982]
[1609490826762,10.99731418,28994.0,28991.0,0.6833]
[1609490827067,10.63033796,28993.0,28991.0,0.6833]
[1609490827367,14.41880608,28992.0,28991.0,0.6833]
[1609490828061,14.42400608,28992.0,28991.0,0.6833]
[1609490828257,14.56527354,28992.0,28991.0,0.6833]
[1609490828560,10.31007354,28992.0,28991.0,0.6833]
[1609490828762,10.42660542,28992.0,28991.0,0.6833]
[1609490829163,11.11540543,28992.0,28991.0,0.6833]
[1609490829361,10.97040543,28992.0,28991.0,0.6833]
[1609490829565,10.99887355,28992.0,28991.0,0.6833]
[1609490829863,10.97040543,28992.0,28991.0,0.6833]
[1609490832378,10.91381947,28992.0,28991.0,0.6833]
[1609490832780,10.91901947,28992.0,28991.0,0.6833]
[1609490833977,10.90901947,28992.0,28991.0,0.6833]
[1609490834825,10.68880001,28992.0,28991.0,0.6833]
[1609490835028,10.83006683,28992.0,28991.0,0.9633]
[1609490835224,10.83006683,28992.0,28991.0,0.6833]
[1609490835431,10.83006683,28992.0,28991.0,1.049178]
[1609490836258,10.83006683,28992.0,28991.0,1.189178]
[1609490837864,10.83006683,28992.0,28991.0,1.049178]
[1609490842499,10.83006683,28992.0,28991.0,1.274178]
[1609490843535,10.84807497,28992.0,28991.0,1.274178]
[1609490843738,10.84807497,28992.0,28991.0,1.354178]
[1609490843938,10.84807497,28992.0,28991.0,1.274178]
[1609490844536,10.84807497,28992.0,28991.0,1.049178]
[1609490850605,9.94950683,28992.0,28991.0,1.049178]
[1609490851508,9.94450683,28992.0,28991.0,1.049178]
[1609490852310,9.94450683,28992.0,28991.0,1.224178]
[1609490854115,9.25570682,28992.0,28991.0,1.224178]
[1609490854515,9.25570682,28992.0,28991.0,1.304178]
[1609490854713,9.25570682,28992.0,28991.0,1.224178]
[1609490855530,9.25570682,28992.0,28991.0,1.304178]
[1609490856034,9.25570682,28992.0,28991.0,1.224178]
[1609490858937,9.25570682,28992.0,28991.0,1.049178]
[1609490860338,9.31229278,28992.0,28991.0,1.049178]
[1609490861253,9.94450683,28992.0,28991.0,1.049178]
[1609490861554,10.04692853,28992.0,28991.0,0.6833]
[1609490861851,9.94450683,28992.0,28991.0,0.6833]
[1609490862053,10.12450683,28992.0,28991.0,1.049178]
[1609490862255,9.94450683,28992.0,28991.0,1.049178]
[1609490862464,9.93950683,28992.0,28991.0,1.049178]
[1609490863151,9.93950683,28992.0,28991.0,0.6833]
[1609490863353,10.01327483,28992.0,28991.0,0.6833]
[1609490866334,10.01327483,28992.0,28991.0,0.6783]
[1609490868035,10.01327483,28992.0,28991.0,0.6733]
[1609490868234,10.06986079,28992.0,28991.0,0.6733]
[1609490868434,10.39486079,28992.0,28991.0,0.6733]
[1609490869859,10.01327483,28992.0,28991.0,0.6733]
[1609490870661,9.93950683,28992.0,28991.0,1.219178]